fUST/lending_fUST_20250810
["ID","MTS","AMOUNT","RATE_DAILY","PERIOD"]
[378318435,1754823044506,-1000.0,0.00022121,2]
[378318436,1754823044515,-1030.84321249,0.00022121,2]
[378318437,1754823044524,-164.02402428,0.00022121,2]
[378318438,1754823044533,-545.03100898,0.00022121,2]
[378318439,1754823044543,-1004.55421228,0.00022121,2]
[378318440,1754823044551,-500.0,0.00022121,2]
[378318441,1754823044560,-1000.0,0.00022121,2]
[378318442,1754823044567,-1000.0,0.00022121,2]
[378318443,1754823044575,-1000.0,0.00022121,2]
[378318444,1754823044584,-177.31153823,0.00022121,2]
[378318445,1754823044593,-1000.0,0.00022121,2]
[378318446,1754823044603,-1500.0,0.00022168,2]
[378318447,1754823044613,-1500.0,0.00022168,2]
[378318448,1754823044622,-1500.0,0.00022168,2]
[378318449,1754823044631,-1500.0,0.00022168,2]
[378318450,1754823044640,-1500.0,0.00022168,2]
[378318451,1754823044650,-711.74076198,0.00022168,2]
[378318452,1754823044659,-1332.65232337,0.00022168,2]
[378318453,1754823044669,-1500.0,0.00022168,2]
[378318454,1754823044678,-1500.0,0.00022168,2]
[378318455,1754823044688,-1500.0,0.00022168,2]
[378318456,1754823044697,-1500.0,0.00022168,2]
[378318457,1754823044706,-501.9550883,0.00022168,2]
[378318458,1754823044715,-1500.0,0.00022168,2]
[378318459,1754823044725,-1500.0,0.00022168,2]
[378318460,1754823044734,-503.8011336,0.00022168,2]
[378318461,1754823044743,-1500.0,0.00022168,2]
[378318462,1754823044753,-150.0,0.00022173,2]
[378318463,1754823044763,-500.0,0.00022173,2]
[378318464,1754823044773,-500.0,0.00022173,2]
[378318465,1754823044782,-500.0,0.00022173,2]
[378318466,1754823044792,-500.0,0.00022173,2]
[378318467,1754823044801,-500.0,0.00022173,2]
[378318468,1754823044811,-500.0,0.00022173,2]
[378318469,1754823044820,-500.0,0.00022173,2]
[378318470,1754823044829,-150.0,0.00022173,2]
[378318471,1754823044842,-160.0,0.00022189,2]
[378318472,1754823044851,-312.16666667,0.00022189,2]
[378318473,1754823044861,-160.0,0.00022189,2]
[378318474,1754823044874,-160.0,0.00022189,2]
[378318475,1754823044883,-160.0,0.00022189,2]
[378318476,1754823044893,-160.0,0.00022189,2]
[378318477,1754823044903,-527.86640923,0.0002219,2]
[378318478,1754823044913,-12668.57659669,0.0002219,2]
[378318479,1754823044922,-160.0,0.0002219,2]
[378318480,1754823044931,-215.44987349,0.0002219,2]
[378318481,1754823044941,-160.0,0.00022193,2]
[378318482,1754823044951,-843.0869304,0.00022193,2]
[378318483,1754823044961,-216.64838636,0.00022193,2]
[378318484,1754823044971,-461.62346162,0.00022193,2]
[378318485,1754823044981,-160.0,0.00022193,2]
[378318486,1754823044990,-231.96268195,0.00022193,2]
[378318487,1754823045000,-170.51523,0.00022209,7]
[378318488,1754823045010,-170.515226,0.00022209,7]
[378318489,1754823045019,-784.7,0.00022209,2]
[378318490,1754823045028,-151.0,0.0002224,7]
[378318491,1754823045037,-460.0,0.00022293,2]
[378318492,1754823045047,-462.82,0.00022293,2]
[378318493,1754823045057,-1196.43805234,0.00022293,2]
[378318494,1754823045066,-382.0,0.00022293,2]
[378318495,1754823045075,-991.12,0.00022293,2]
[378318496,1754823045086,-5927.62,0.0002235,3]
[378318497,1754823045095,-3679.04,0.0002235,3]
[378318498,1754823045105,-1839.52,0.0002235,3]
[378318499,1754823045114,-919.76,0.0002235,3]
[378318500,1754823045125,-459.88,0.0002235,3]
[378318501,1754823045134,-591.26,0.0002235,3]
[378318502,1754823045144,-215.44987349,0.0002235,3]
[378318503,1754823045154,-312.16666667,0.0002235,3]
[378318504,1754823045165,-527.86640923,0.0002235,3]
[378318505,1754823045175,-12668.57659669,0.0002235,3]
[378318506,1754823045185,-461.62346162,0.0002235,3]
[378318507,1754823045195,-160.0,0.00022356,2]
[378318508,1754823045205,-350.0,0.00022368,2]
[378318509,1754823045216,-1510.71061872,0.00022368,2]
[378318510,1754823045226,-902.52,0.00022369,2]
[378318511,1754823045235,-460.0,0.00022369,2]
[378318512,1754823045245,-1682.52,0.00022369,2]
[378318513,1754823045255,-284.67,0.00022369,2]
[378318514,1754823045265,-5449.43,0.00022369,2]
[378318515,1754823045275,-460.0,0.00022369,2]
[378318516,1754823045285,-460.0,0.00022369,2]
[378318517,1754823045295,-460.0,0.00022391,2]
[378318518,1754823045304,-460.0,0.00022391,2]
[378318519,1754823045314,-460.0,0.00022391,2]
[378318520,1754823045323,-843.73,0.00022391,2]
[378318521,1754823045332,-1885.24,0.00022391,2]
[378318522,1754823045346,-460.0,0.00022391,2]
[378318523,1754823045355,-460.0,0.00022391,2]
[378318524,1754823045365,-460.0,0.00022391,2]
[378318525,1754823045375,-665.01,0.00022391,2]
[378318526,1754823045384,-1503.61,0.00022391,2]
[378318527,1754823045393,-460.0,0.00022391,2]
[378318528,1754823045403,-460.0,0.00022391,2]
[378318529,1754823045413,-1701.36,0.00022391,2]
[378318530,1754823045422,-460.0,0.00022391,2]
[378318531,1754823045431,-460.0,0.00022391,2]
[378318532,1754823045440,-460.0,0.00022391,2]
[378318533,1754823045450,-1158.71,0.00022391,2]
[378318534,1754823045459,-460.0,0.00022391,2]
[378318535,1754823045469,-760.4,0.00022391,2]
[378318536,1754823045478,-751.04,0.00022391,2]
[378318537,1754823045487,-460.0,0.00022391,2]
[378318538,1754823045497,-460.0,0.00022391,2]
[378318539,1754823045506,-472.09,0.00022391,2]
[378318540,1754823045515,-460.0,0.00022391,2]
[378318541,1754823045525,-1013.66,0.00022391,2]
[378318542,1754823045534,-784.7,0.00022391,2]
[378318543,1754823045543,-460.0,0.00022392,2]
[378318544,1754823045552,-460.0,0.00022392,2]
[378318545,1754823045562,-460.0,0.00022392,2]
[378318546,1754823045571,-460.0,0.00022392,2]
[378318547,1754823045581,-460.0,0.00022392,2]
[378318548,1754823045593,-460.0,0.00022392,2]
[378318549,1754823045603,-460.0,0.00022392,2]
[378318550,1754823045612,-970.74,0.00022392,2]
[378318551,1754823045622,-4237.2,0.00022392,2]
[378318552,1754823045631,-460.0,0.00022392,2]
[378318553,1754823045641,-460.0,0.00022392,2]
[378318554,1754823045651,-484.95,0.00022392,2]
[378318555,1754823045660,-970.2,0.00022392,2]
[378318556,1754823045669,-584.39767404,0.00022392,2]
[378318557,1754823045679,-1504.3,0.00022392,2]
[378318558,1754823045687,-1597.08,0.00022392,2]
[378318559,1754823045699,-460.0,0.00022393,2]
[378318560,1754823045709,-498.19,0.00022393,2]
[378318561,1754823045718,-460.0,0.00022393,2]
[378318562,1754823045729,-460.0,0.00022393,2]
[378318563,1754823045738,-460.0,0.00022393,2]
[378318564,1754823045747,-460.0,0.00022394,2]
[378318565,1754823045758,-460.0,0.00022394,2]
[378318566,1754823045767,-460.0,0.00022394,2]
[378318567,1754823045777,-633.63,0.00022394,2]
[378318568,1754823045787,-1040.39,0.00022394,2]
[378318569,1754823045796,-460.0,0.00022394,2]
[378318570,1754823045806,-151.0,0.000224,9]
[378318571,1754823045816,-1000.0,0.00022421,2]
[378318572,1754823045825,-151.0,0.000225,6]
[378318573,1754823045838,-300.0,0.0002255,2]
[378318574,1754823045849,-460.0,0.00022567,2]
[378318575,1754823045859,-991.12,0.00022567,2]
[378318576,1754823045871,-1551.71139538,0.00022616,2]
[378318577,1754823045881,-902.52,0.00022643,2]
[378318578,1754823045891,-460.0,0.00022643,2]
[378318579,1754823045900,-1682.52,0.00022643,2]
[378318580,1754823045910,-5449.43,0.00022643,2]
[378318581,1754823045919,-460.0,0.00022643,2]
[378318582,1754823045929,-460.0,0.00022643,2]
[378318583,1754823045938,-460.0,0.00022665,2]
[378318584,1754823045948,-460.0,0.00022665,2]
[378318585,1754823045958,-460.0,0.00022665,2]
[378318586,1754823045967,-843.73,0.00022665,2]
[378318587,1754823045976,-1885.24,0.00022665,2]
[378318588,1754823045986,-460.0,0.00022665,2]
[378318589,1754823045995,-460.0,0.00022665,2]
[378318590,1754823046006,-460.0,0.00022665,2]
[378318591,1754823046015,-665.01,0.00022665,2]
[378318592,1754823046025,-1503.61,0.00022665,2]
[378318593,1754823046035,-460.0,0.00022665,2]
[378318594,1754823046044,-460.0,0.00022665,2]
[378318595,1754823046054,-1701.36,0.00022665,2]
[378318596,1754823046063,-548.19,0.00022665,2]
[378318597,1754823046073,-460.0,0.00022665,2]
[378318598,1754823046086,-460.0,0.00022665,2]
[378318599,1754823046095,-1158.71,0.00022665,2]
[378318600,1754823046104,-460.0,0.00022665,2]
[378318601,1754823046114,-760.4,0.00022665,2]
[378318602,1754823046124,-751.04,0.00022665,2]
[378318603,1754823046133,-460.0,0.00022665,2]
[378318604,1754823046143,-460.0,0.00022665,2]
[378318605,1754823046152,-472.09,0.00022665,2]
[378318606,1754823046161,-420.43,0.00022665,2]
[378318607,1754823046171,-1013.66,0.00022665,2]
[378318608,1754823046180,-460.0,0.00022666,2]
[378318609,1754823046190,-460.0,0.00022666,2]
[378318610,1754823046199,-460.0,0.00022666,2]
[378318611,1754823046208,-460.0,0.00022666,2]
[378318612,1754823046217,-460.0,0.00022666,2]
[378318613,1754823046227,-460.0,0.00022666,2]
[378318614,1754823046236,-460.0,0.00022666,2]
[378318616,1754823046245,-970.74,0.00022666,2]
[378318618,1754823046254,-4237.2,0.00022666,2]
[378318619,1754823046263,-460.0,0.00022666,2]
[378318620,1754823046273,-460.0,0.00022666,2]
[378318621,1754823046282,-484.95,0.00022666,2]
[378318622,1754823046291,-970.2,0.00022666,2]
[378318623,1754823046301,-1504.3,0.00022666,2]
[378318624,1754823046310,-1597.08,0.00022666,2]
[378318625,1754823046319,-460.0,0.00022667,2]
[378318626,1754823046328,-498.19,0.00022667,2]
[378318627,1754823046339,-460.0,0.00022667,2]
[378318629,1754823046348,-460.0,0.00022667,2]
[378318631,1754823046358,-460.0,0.00022668,2]
[378318632,1754823046367,-460.0,0.00022668,2]
[378318633,1754823046376,-460.0,0.00022668,2]
[378318634,1754823046386,-633.63,0.00022668,2]
[378318635,1754823046395,-1040.39,0.00022668,2]
[378318636,1754823046405,-460.0,0.00022668,2]
[378318637,1754823046414,-784.7,0.00022668,2]
[378318638,1754823046423,-1500.0,0.00022668,2]
[378318640,1754823046433,-1500.0,0.00022668,2]
[378318641,1754823046442,-1500.0,0.00022668,2]
[378318643,1754823046452,-1500.0,0.00022668,2]
[378318644,1754823046461,-698.51888683,0.00022668,2]
[378318645,1754823046470,-1500.0,0.00022668,2]
[378318646,1754823046480,-1112.87288659,0.00022668,2]
[378318647,1754823046489,-1500.0,0.00022668,2]
[378318648,1754823046499,-1500.0,0.00022668,2]
[378318650,1754823046508,-502.51417077,0.00022668,2]
[378318652,1754823046518,-550.34328308,0.00022668,2]
[378318653,1754823046527,-151.0,0.000227,9]
[378318654,1754823046537,-243.98368734,0.00022716,2]
[378318655,1754823046546,-2000.0,0.00022716,2]
[378318656,1754823046556,-2000.0,0.00022716,2]
[378318657,1754823046565,-2000.0,0.00022716,2]
[378318658,1754823046574,-301.41276522,0.00022716,2]
[378318659,1754823046584,-2000.0,0.00022716,2]
[378318660,1754823046593,-2000.0,0.00022716,2]
[378318661,1754823046602,-732.90276445,0.00022716,2]
[378318662,1754823046707,-2000.0,0.00022716,2]
[378318663,1754823046717,-2000.0,0.00022716,2]
[378318664,1754823046730,-2000.0,0.00022716,2]
[378318665,1754823046740,-2000.0,0.00022716,2]
[378318666,1754823046750,-250.0,0.00022721,2]
[378318667,1754823046761,-1000.0,0.00022721,2]
[378318668,1754823046773,-500.0,0.00022721,2]
[378318669,1754823046782,-219.91700054,0.00022721,2]
[378318670,1754823046791,-828.47117971,0.00022721,2]
[378318671,1754823046801,-393.61947796,0.00022721,2]
[378318672,1754823046810,-1000.0,0.00022721,2]
[378318673,1754823046820,-250.0,0.00022721,2]
[378318674,1754823046830,-420.0,0.00022759,2]
[378318675,1754823046840,-172.00826619,0.0002281,2]
[378318676,1754823046849,-151.0,0.00022821,7]
[378318677,1754823046859,-388.25,0.00022841,2]
[378318678,1754823046871,-991.12,0.00022841,2]
[378318679,1754823046881,-151.0,0.00022857,7]
[378318680,1754823046890,-4750.36417485,0.00022861,2]
[378318681,1754823046899,-1680.0,0.00022868,2]
[378318682,1754823046909,-260.0,0.00022904,2]
[378318683,1754823046918,-450.0,0.00022916,2]
[378318684,1754823046929,-902.52,0.00022917,2]
[378318685,1754823046938,-460.0,0.00022917,2]
[378318686,1754823046948,-1682.52,0.00022917,2]
[378318687,1754823046958,-5449.43,0.00022917,2]
[378318688,1754823046967,-460.0,0.00022917,2]
[378318689,1754823046977,-460.0,0.00022917,2]
[378318690,1754823046986,-448.13,0.00022926,2]
[378318691,1754823046996,-460.0,0.00022939,2]
[378318692,1754823047005,-460.0,0.00022939,2]
[378318693,1754823047020,-460.0,0.00022939,2]
[378318694,1754823047029,-843.73,0.00022939,2]
[378318695,1754823047039,-1885.24,0.00022939,2]
[378318696,1754823047048,-460.0,0.00022939,2]
[378318697,1754823047060,-460.0,0.00022939,2]
[378318698,1754823047070,-268.93790847,0.00022939,2]
[378318699,1754823047080,-665.01,0.00022939,2]
[378318700,1754823047090,-1503.61,0.00022939,2]
[378318701,1754823047100,-460.0,0.00022939,2]
[378318702,1754823047110,-215.99746886,0.00022939,2]
[378318703,1754823047120,-1701.36,0.00022939,2]
[378318704,1754823047130,-460.0,0.00022939,2]
[378318705,1754823047140,-460.0,0.00022939,2]
[378318706,1754823047150,-1158.71,0.00022939,2]
[378318707,1754823047159,-460.0,0.00022939,2]
[378318708,1754823047169,-760.4,0.00022939,2]
[378318709,1754823047178,-751.04,0.00022939,2]
[378318710,1754823047188,-576.47776934,0.00022939,2]
[378318711,1754823047197,-460.0,0.00022939,2]
[378318712,1754823047207,-472.09,0.00022939,2]
[378318713,1754823047216,-1013.66,0.00022939,2]
[378318714,1754823047226,-460.0,0.0002294,2]
[378318715,1754823047236,-460.0,0.0002294,2]
[378318716,1754823047245,-460.0,0.0002294,2]
[378318717,1754823047255,-460.0,0.0002294,2]
[378318718,1754823047263,-460.0,0.0002294,2]
[378318719,1754823047273,-460.0,0.0002294,2]
[378318720,1754823047283,-460.0,0.0002294,2]
[378318721,1754823047293,-970.74,0.0002294,2]
[378318722,1754823047303,-4237.2,0.0002294,2]
[378318723,1754823047312,-460.0,0.0002294,2]
[378318724,1754823047322,-460.0,0.0002294,2]
[378318725,1754823047331,-484.95,0.0002294,2]
[378318726,1754823047341,-970.2,0.0002294,2]
[378318727,1754823047350,-1504.3,0.0002294,2]
[378318728,1754823047359,-1597.08,0.0002294,2]
[378318729,1754823047368,-460.0,0.00022941,2]
[378318730,1754823047378,-498.19,0.00022941,2]
[378318731,1754823047387,-460.0,0.00022941,2]
[378318732,1754823047396,-460.0,0.00022941,2]
[378318733,1754823047406,-460.0,0.00022942,2]
[378318734,1754823047415,-282.2,0.00022942,2]
[378318735,1754823047425,-633.63,0.00022942,2]
[378318736,1754823047434,-1040.39,0.00022942,2]
[378318737,1754823047444,-460.0,0.00022942,2]
[378318738,1754823047453,-233.62368627,0.00022968,2]
[378318739,1754823047463,-151.0,0.00023,8]
[378318740,1754823047472,-216.64838636,0.00023,3]
[378318741,1754823047482,-160.0,0.00023,3]
[378318742,1754823047491,-843.0869304,0.00023,3]
[378318743,1754823047502,-160.0,0.00023,2]
[378318744,1754823047512,-160.0,0.00023,3]
[378318745,1754823047522,-160.0,0.00023,3]
[378318746,1754823047532,-160.0,0.00023,3]
[378318747,1754823047541,-231.96268195,0.00023,3]
[378318748,1754823047551,-160.0,0.00023,3]
[378318749,1754823047562,-151.0,0.00023008,2]
[378318750,1754823047571,-151.0,0.00023008,2]
[378318751,1754823047580,-151.0,0.00023008,2]
[378318752,1754823047591,-151.0,0.00023008,2]
[378318753,1754823047600,-151.0,0.00023008,2]
[378318754,1754823047609,-250.0,0.00023008,2]
[378318755,1754823047618,-151.0,0.00023008,2]
[378318756,1754823047627,-151.0,0.00023008,2]
[378318757,1754823047637,-151.0,0.00023008,2]
[378318758,1754823047647,-250.0,0.00023008,2]
[378318759,1754823047656,-151.0,0.00023008,2]
[378318760,1754823047665,-151.0,0.00023008,2]
[378318761,1754823047675,-151.0,0.00023008,2]
[378318762,1754823047684,-285.24687649,0.00023008,2]
[378318763,1754823047693,-151.0,0.00023008,2]
[378318764,1754823047702,-250.0,0.00023008,2]
[378318765,1754823047712,-151.0,0.00023008,2]
[378318766,1754823047721,-151.0,0.00023008,2]
[378318767,1754823047733,-151.0,0.00023008,2]
[378318768,1754823047742,-250.0,0.00023008,2]
[378318769,1754823047751,-151.0,0.00023008,2]
[378318770,1754823047760,-250.0,0.00023008,2]
[378318771,1754823047770,-151.0,0.00023008,2]
[378318772,1754823047779,-151.0,0.00023008,2]
[378318773,1754823047788,-151.0,0.00023008,2]
[378318774,1754823047797,-2183.31810187,0.00023008,2]
[378318775,1754823047807,-250.0,0.00023008,2]
[378318776,1754823047816,-151.0,0.00023008,2]
[378318777,1754823047825,-151.0,0.00023008,2]
[378318778,1754823047834,-151.0,0.00023008,2]
[378318779,1754823047844,-250.0,0.00023008,2]
[378318780,1754823047854,-151.0,0.00023008,2]
[378318781,1754823047867,-151.0,0.00023008,2]
[378318782,1754823047876,-151.0,0.00023008,2]
[378318783,1754823047886,-250.0,0.00023008,2]
[378318784,1754823047895,-151.0,0.00023008,2]
[378318785,1754823047904,-151.0,0.00023008,2]
[378318786,1754823047914,-151.0,0.00023008,2]
[378318787,1754823047923,-250.0,0.00023008,2]
[378318788,1754823047932,-199.86393037,0.00023008,2]
[378318789,1754823047943,-151.0,0.00023008,2]
[378318790,1754823047952,-151.0,0.00023008,2]
[378318791,1754823047961,-151.0,0.00023008,2]
[378318792,1754823047970,-300.0,0.00023008,2]
[378318793,1754823047979,-151.0,0.00023008,2]
[378318794,1754823047989,-250.0,0.00023008,2]
[378318795,1754823047998,-151.0,0.00023008,2]
[378318796,1754823048008,-250.0,0.00023008,2]
[378318797,1754823048017,-300.0,0.00023008,2]
[378318798,1754823048027,-250.0,0.00023008,2]
[378318799,1754823048036,-151.0,0.00023008,2]
[378318800,1754823048046,-300.0,0.00023008,2]
[378318801,1754823048055,-151.0,0.00023008,2]
[378318802,1754823048064,-250.0,0.00023008,2]
[378318803,1754823048074,-151.0,0.00023008,2]
[378318804,1754823048083,-300.0,0.00023008,2]
[378318805,1754823048093,-151.0,0.00023008,2]
[378318806,1754823048103,-151.0,0.00023008,2]
[378318807,1754823048113,-250.0,0.00023008,2]
[378318808,1754823048122,-151.0,0.00023008,2]
[378318809,1754823048132,-300.0,0.00023008,2]
[378318810,1754823048141,-151.0,0.00023008,2]
[378318811,1754823048151,-151.0,0.00023008,2]
[378318812,1754823048164,-151.0,0.00023008,2]
[378318813,1754823048174,-151.0,0.00023008,2]
[378318814,1754823048185,-151.0,0.00023008,2]
[378318815,1754823048194,-151.0,0.00023008,2]
[378318816,1754823048204,-151.0,0.00023008,2]
[378318817,1754823048214,-151.0,0.00023008,2]
[378318818,1754823048225,-151.0,0.00023008,2]
[378318819,1754823048235,-300.0,0.00023008,2]
[378318820,1754823048245,-174.62782613,0.00023008,2]
[378318821,1754823048255,-300.0,0.00023008,2]
[378318822,1754823048264,-300.0,0.00023008,2]
[378318823,1754823048273,-300.0,0.00023008,2]
[378318824,1754823048284,-300.0,0.00023008,2]
[378318825,1754823048295,-300.0,0.00023008,2]
[378318826,1754823048305,-300.0,0.00023008,2]
[378318827,1754823048315,-500.0,0.00023008,2]
[378318828,1754823048325,-300.0,0.00023008,2]
[378318829,1754823048335,-500.0,0.00023008,2]
[378318830,1754823048345,-300.0,0.00023008,2]
[378318831,1754823048355,-500.0,0.00023008,2]
[378318832,1754823048364,-500.0,0.00023008,2]
[378318833,1754823048374,-500.0,0.00023008,2]
[378318834,1754823048384,-151.0,0.00023008,2]
[378318835,1754823048394,-500.0,0.00023008,2]
[378318836,1754823048403,-166.065596,0.0002303,2]
[378318837,1754823048412,-2264.10087164,0.00023063,2]
[378318838,1754823048422,-991.12,0.00023115,2]
[378318839,1754823048431,-2347.87260389,0.00023118,2]
[378318840,1754823048441,-2434.74389024,0.00023173,2]
[378318841,1754823048451,-902.52,0.00023191,2]
[378318842,1754823048461,-460.0,0.00023191,2]
[378318843,1754823048471,-1682.52,0.00023191,2]
[378318844,1754823048480,-5449.43,0.00023191,2]
[378318845,1754823048490,-460.0,0.00023191,2]
[378318846,1754823048500,-460.0,0.00023191,2]
[378318847,1754823048509,-1632.35,0.00023192,2]
[378318848,1754823048519,-1551.0,0.00023206,2]
[378318849,1754823048529,-460.0,0.00023213,2]
[378318850,1754823048539,-460.0,0.00023213,2]
[378318851,1754823048548,-843.73,0.00023213,2]
[378318852,1754823048558,-1885.24,0.00023213,2]
[378318853,1754823048567,-460.0,0.00023213,2]
[378318854,1754823048577,-460.0,0.00023213,2]
[378318855,1754823048588,-665.01,0.00023213,2]
[378318856,1754823048597,-1503.61,0.00023213,2]
[378318857,1754823048607,-460.0,0.00023213,2]
[378318858,1754823048616,-1701.36,0.00023213,2]
[378318859,1754823048625,-460.0,0.00023213,2]
[378318860,1754823048635,-460.0,0.00023213,2]
[378318861,1754823048644,-1158.71,0.00023213,2]
[378318862,1754823048653,-460.0,0.00023213,2]
[378318863,1754823048662,-760.4,0.00023213,2]
[378318864,1754823048672,-751.04,0.00023213,2]
[378318865,1754823048681,-460.0,0.00023213,2]
[378318866,1754823048690,-472.09,0.00023213,2]
[378318867,1754823048700,-1013.66,0.00023213,2]
[378318868,1754823048710,-784.7,0.00023213,2]
[378318869,1754823048719,-460.0,0.00023214,2]
[378318870,1754823048729,-523.99960365,0.00023214,2]
[378318871,1754823048739,-460.0,0.00023214,2]
[378318872,1754823048842,-460.0,0.00023214,2]
[378318873,1754823048852,-460.0,0.00023214,2]
[378318874,1754823048862,-460.0,0.00023214,2]
[378318875,1754823048874,-460.0,0.00023214,2]
[378318876,1754823048884,-970.74,0.00023214,2]
[378318877,1754823048893,-4237.2,0.00023214,2]
[378318878,1754823048903,-190.14742887,0.00023214,2]
[378318879,1754823048912,-460.0,0.00023214,2]
[378318880,1754823048922,-484.95,0.00023214,2]
[378318881,1754823048932,-970.2,0.00023214,2]
[378318882,1754823048943,-1504.3,0.00023214,2]
[378318883,1754823048952,-1597.08,0.00023214,2]
[378318884,1754823048962,-460.0,0.00023215,2]
[378318885,1754823048972,-498.19,0.00023215,2]
[378318886,1754823048981,-460.0,0.00023215,2]
[378318887,1754823048991,-482.07591565,0.00023215,2]
[378318888,1754823049001,-151.0,0.00023216,7]
[378318889,1754823049011,-460.0,0.00023216,2]
[378318890,1754823049020,-633.63,0.00023216,2]
[378318891,1754823049030,-1040.39,0.00023216,2]
[378318892,1754823049040,-153.21962257,0.00023216,2]
[378318893,1754823049049,-2000.0,0.00023216,2]
[378318894,1754823049058,-651.66209667,0.00023216,2]
[378318895,1754823049068,-747.95680819,0.00023216,2]
[378318896,1754823049077,-2000.0,0.00023216,2]
[378318897,1754823049087,-2000.0,0.00023216,2]
[378318898,1754823049096,-1771.1491591,0.00023216,2]
[378318899,1754823049105,-2000.0,0.00023216,2]
[378318900,1754823049115,-896.96175145,0.00023228,2]
[378318901,1754823049125,-1551.0,0.00023249,2]
[378318902,1754823049134,-2500.0,0.00023264,2]
[378318903,1754823049144,-2500.0,0.00023264,2]
[378318904,1754823049154,-1186.7420293,0.00023264,2]
[378318905,1754823049164,-2500.0,0.00023264,2]
[378318906,1754823049174,-2004.27592296,0.00023264,2]
[378318907,1754823049184,-244.16675486,0.00023264,2]
[378318908,1754823049195,-2500.0,0.00023264,2]
[378318909,1754823049204,-2094.7523781,0.00023264,2]
[378318910,1754823049213,-2500.0,0.00023264,2]
[378318911,1754823049223,-350.0,0.00023268,2]
[378318912,1754823049233,-822.02100345,0.00023268,2]
[378318913,1754823049243,-1500.0,0.00023268,2]
[378318914,1754823049253,-1000.0,0.00023268,2]
[378318915,1754823049263,-150.26684607,0.00023268,2]
[378318916,1754823049272,-408.0,0.00023285,2]
[378318917,1754823049282,-416.045,0.00023285,2]
[378318918,1754823049292,-972.698,0.00023285,2]
[378318919,1754823049301,-2150.0,0.00023285,2]
[378318920,1754823049310,-636.0,0.00023285,2]
[378318921,1754823049320,-150.0,0.00023285,2]
[378318922,1754823049330,-151.0,0.00023286,7]
[378318923,1754823049340,-1551.0,0.00023286,2]
[378318924,1754823049350,-500.0,0.00023288,2]
[378318925,1754823049360,-151.0,0.000233,5]
[378318926,1754823049369,-991.12,0.00023389,2]
[378318927,1754823049378,-189.184,0.00023409,3]
[378318928,1754823049388,-6306.53855808,0.00023409,2]
[378318929,1754823049397,-1551.0,0.00023411,2]
[378318930,1754823049407,-360.0,0.00023451,2]
[378318931,1754823049416,-550.0,0.00023464,2]
[378318932,1754823049426,-902.52,0.00023465,2]
[378318933,1754823049435,-576.23574534,0.00023465,2]
[378318934,1754823049445,-1682.52,0.00023465,2]
[378318935,1754823049454,-5449.43,0.00023465,2]
[378318936,1754823049463,-460.0,0.00023465,2]
[378318937,1754823049473,-460.0,0.00023465,2]
[378318938,1754823049482,-460.0,0.00023487,2]
[378318939,1754823049492,-460.0,0.00023487,2]
[378318940,1754823049501,-843.73,0.00023487,2]
[378318941,1754823049510,-1885.24,0.00023487,2]
[378318942,1754823049520,-460.0,0.00023487,2]